bitfinex/quotes_BTCUSD_20241205
["timestamp","ask_amount","ask_price","bid_price","bid_amount"]
[1733415743486,0.09967605,102040.0,102030.0,0.00193751]
[1733415743747,0.00231855,102050.0,102030.0,0.42080343]
[1733415743938,0.1019946,102050.0,102030.0,0.29339543]
[1733415744152,0.09967605,102040.0,102020.0,0.00288238]
[1733415744378,0.09967605,102040.0,102030.0,0.127413]
[1733415744647,0.00231855,102050.0,102030.0,0.127413]
[1733415744903,0.1019946,102050.0,102030.0,0.25782]
[1733415745126,0.1019946,102050.0,102030.0,0.003]
[1733415745127,0.09967605,102040.0,102030.0,0.003]
[1733415745763,0.09967605,102040.0,102020.0,0.00288238]
[1733415745983,0.09967605,102040.0,102010.0,0.54619565]
[1733415745984,0.27387391,102040.0,102010.0,0.02708446]
[1733415746230,0.27387391,102040.0,102030.0,0.007]
[1733415746231,0.22447605,102040.0,102030.0,0.007]
[1733415746451,0.32447605,102040.0,102030.0,0.002]
[1733415746673,0.49046748,102040.0,102030.0,0.005]
[1733415746891,0.41386748,102040.0,102010.0,0.00026372]
[1733415747099,0.17627605,102030.0,102010.0,0.00626372]
[1733415748207,0.17627605,102030.0,102010.0,0.00726372]
[1733415748505,0.0482,102020.0,102010.0,0.00726372]
[1733415748721,0.14787605,102020.0,102010.0,0.00026372]
[1733415749611,0.14787605,102020.0,102010.0,0.00126372]
[1733415749820,0.17446484,102020.0,102010.0,0.00026372]
[1733415751653,0.17746484,102020.0,102010.0,0.00126372]
[1733415753047,0.15287605,102020.0,102010.0,0.00126372]
[1733415753254,0.005,102020.0,102010.0,0.00126372]
[1733415753758,0.005,102020.0,102010.0,0.12870172]
[1733415753923,0.005,102020.0,102010.0,0.00126372]
[1733415754359,0.005,102020.0,102010.0,0.12870172]
[1733415754594,0.002,102020.0,102010.0,0.12770172]
[1733415755469,0.002,102020.0,102010.0,0.00126372]
[1733415755470,0.005,102020.0,102010.0,0.00126372]
[1733415755473,0.003,102020.0,102010.0,0.00126372]
[1733415755477,0.005,102020.0,102010.0,0.00126372]
[1733415755547,0.20467605,102020.0,102010.0,0.00426372]
[1733415755743,0.16747966,102020.0,102010.0,0.00026372]
[1733415755951,0.36351866,102020.0,102010.0,0.00326372]
[1733415756212,0.36351866,102020.0,102010.0,0.00526372]
[1733415756421,0.09967605,102020.0,102010.0,0.00226372]
[1733415756658,0.09967605,102020.0,102010.0,0.00026372]
[1733415757096,0.10167605,102020.0,102010.0,0.00026372]
[1733415757760,0.10467605,102020.0,102010.0,0.00126372]
[1733415758172,0.09967605,102020.0,102010.0,0.00026372]
[1733415758394,0.13837646,102020.0,102010.0,0.00026372]
[1733415758608,0.10067605,102020.0,102010.0,0.00026372]
[1733415759251,0.10067605,102020.0,102010.0,0.00199592]
[1733415759692,0.09967605,102020.0,102010.0,0.00399592]
[1733415761014,0.09967605,102020.0,102010.0,0.00699592]
[1733415761384,0.09967605,102020.0,102010.0,0.00499592]
[1733415761766,0.10067605,102020.0,102010.0,0.00499592]
[1733415762642,0.001,102020.0,102010.0,0.37812535]
[1733415763045,0.001,102020.0,102010.0,0.21213392]
[1733415763911,0.633333,102040.0,102010.0,0.20913392]
[1733415764129,0.09967605,102030.0,102010.0,0.20913392]
[1733415764359,0.09967605,102030.0,102010.0,0.21213392]
[1733415764593,0.196039,102020.0,102010.0,0.00599592]
[1733415764806,0.29571505,102020.0,102010.0,0.00599592]
[1733415765050,0.29571505,102020.0,102010.0,0.00899592]
[1733415765273,0.34488996,102020.0,102010.0,0.00599592]
[1733415765483,0.34488996,102020.0,102010.0,0.00899592]
[1733415765698,0.34488996,102020.0,102010.0,0.00499592]
[1733415765929,0.44488996,102020.0,102010.0,0.00199592]
[1733415766133,0.65758139,102020.0,102010.0,0.00199592]
[1733415766372,0.73778139,102020.0,102010.0,0.00199592]
[1733415766818,0.296078,102000.0,101990.0,0.0017328]
[1733415767051,0.69147615,102000.0,101990.0,0.0017328]
[1733415767268,0.75746758,102000.0,101990.0,0.0017328]
[1733415767476,0.59147615,102000.0,101990.0,0.0017328]
[1733415767965,0.42265405,102000.0,101990.0,0.0017328]
[1733415768217,0.09967605,102000.0,101990.0,0.00183601]
[1733415768440,0.56574548,102000.0,101990.0,0.00283601]
[1733415768657,0.69094548,102000.0,101990.0,0.00283601]
[1733415768884,0.7908647,102000.0,101990.0,0.00283601]
[1733415769558,0.6908647,102000.0,101990.0,0.00283601]
[1733415769807,0.1,101980.0,101940.0,0.0779]
[1733415770005,0.09967605,101970.0,101940.0,0.205425]
[1733415770223,0.09967605,101970.0,101940.0,0.332945]
[1733415770426,0.11964366,101970.0,101940.0,0.0779]
[1733415770856,0.11964366,101970.0,101940.0,0.0789]
[1733415771337,0.21964366,101970.0,101930.0,0.16973893]
[1733415771598,0.34894366,101970.0,101940.0,0.007]
[1733415772253,0.19967605,101960.0,101940.0,0.007]
[1733415772465,0.23457042,101960.0,101940.0,0.007]
[1733415773339,0.23457042,101960.0,101930.0,0.02453442]
[1733415773532,0.23474575,101960.0,101930.0,0.02453442]
[1733415773741,0.23474575,101960.0,101920.0,0.255094]
[1733415773970,0.1,101950.0,101940.0,0.005]
[1733415774212,0.09967605,101950.0,101940.0,0.005]
[1733415774431,0.00017533,101960.0,101940.0,0.127525]
[1733415774659,0.00017533,101960.0,101940.0,0.42103443]
[1733415774882,0.01117533,101960.0,101940.0,0.4230093]
[1733415775100,0.01117533,101960.0,101950.0,0.29448521]
[1733415775325,0.00917533,101960.0,101950.0,0.29350443]
[1733415775819,0.00917533,101960.0,101950.0,0.127513]
[1733415776043,0.00917533,101960.0,101940.0,0.004]
[1733415776272,0.10885138,101960.0,101940.0,0.008]
[1733415776523,0.09967605,101950.0,101940.0,0.008]
[1733415776770,0.09967605,101950.0,101940.0,0.003]
[1733415777063,0.29585005,101950.0,101940.0,0.003]
[1733415777443,0.09967605,101950.0,101920.0,0.45452806]
[1733415777666,0.09967605,101950.0,101920.0,0.32698306]
[1733415777887,0.09967605,101950.0,101920.0,0.45452806]
[1733415777888,0.29585205,101950.0,101920.0,0.45452806]
[1733415778120,0.09967605,101950.0,101920.0,0.32698306]
[1733415778336,0.00017533,101960.0,101940.0,0.127519]
[1733415778549,0.09985138,101960.0,101940.0,0.127519]
[1733415778789,0.29600738,101960.0,101930.0,0.382592]
[1733415779016,0.37272722,101960.0,101930.0,0.25506]
[1733415779217,0.49217138,101960.0,101930.0,0.127529]
[1733415779455,0.68833838,101960.0,101930.0,0.127529]
[1733415779662,0.001,101950.0,101930.0,0.255061]
[1733415779864,0.10067605,101950.0,101930.0,0.127536]
[1733415780295,0.10067605,101950.0,101930.0,0.262072]
[1733415780546,0.09967605,101950.0,101930.0,0.134536]
[1733415780750,0.10067605,101950.0,101930.0,0.141536]
[1733415780962,0.001,101950.0,101930.0,0.42043343]
[1733415781185,0.00017533,101960.0,101940.0,0.28468242]
[1733415781424,0.09985138,101960.0,101940.0,0.11869099]
[1733415781623,0.09985138,101960.0,101940.0,0.11771]
[1733415781855,0.09985138,101960.0,101940.0,0.11869086]
[1733415782041,0.09985138,101960.0,101940.0,0.11771]
[1733415782248,0.10983652,101960.0,101930.0,0.312543]
[1733415782450,0.10983652,101960.0,101940.0,0.120714]
[1733415782689,0.09985138,101960.0,101940.0,0.238425]
[1733415782907,0.09985138,101960.0,101940.0,0.238421]
[1733415783125,0.00017533,101960.0,101950.0,0.28467629]
[1733415783335,0.00017533,101960.0,101950.0,0.28369543]
[1733415783772,0.15,101980.0,101960.0,0.117692]
[1733415783989,0.24967605,101980.0,101960.0,0.11786733]
[1733415784867,0.24967605,101980.0,101960.0,0.00017533]
[1733415785071,0.44579305,101980.0,101960.0,0.00017533]
[1733415785526,0.64191905,101980.0,101960.0,0.00017533]
[1733415785793,0.44579305,101980.0,101960.0,0.00317533]
[1733415785991,0.64191905,101980.0,101960.0,0.00317533]
[1733415786203,0.44579305,101980.0,101960.0,0.00717533]
[1733415786636,0.24967605,101980.0,101960.0,0.00717533]
[1733415786837,0.25167605,101980.0,101960.0,0.00417533]
[1733415787082,0.25167605,101980.0,101960.0,0.0271279]
[1733415787303,0.25167605,101980.0,101970.0,0.16697213]
[1733415787304,0.153,101980.0,101970.0,0.16697213]
[1733415787517,0.153,101980.0,101960.0,0.31080633]
[1733415787734,0.25267605,101980.0,101960.0,0.0271279]
[1733415787937,0.25267605,101980.0,101960.0,0.1448189]
[1733415788175,0.25167605,101980.0,101960.0,0.1448189]
[1733415788411,0.25167605,101980.0,101960.0,0.1468189]
[1733415788995,0.24967605,101980.0,101960.0,0.1428189]
[1733415789209,0.31386455,101980.0,101960.0,0.0291279]
[1733415789434,0.09967605,101970.0,101960.0,0.0291279]
[1733415789684,0.15,101980.0,101960.0,0.19511933]
[1733415789936,0.24967605,101980.0,101960.0,0.1448209]
[1733415790153,0.24967605,101980.0,101960.0,0.0271279]
[1733415790391,0.09967605,101970.0,101960.0,0.0271279]
[1733415790605,0.09967605,101970.0,101960.0,0.00417533]
[1733415790606,0.29581205,101970.0,101960.0,0.00417533]
[1733415790825,0.37421205,101970.0,101960.0,0.00917533]
[1733415791493,0.37421205,101970.0,101960.0,0.00417533]
[1733415791716,0.47313127,101970.0,101960.0,0.00417533]
[1733415792136,0.37521205,101970.0,101960.0,0.00017533]
[1733415792393,0.392321,101960.0,101940.0,0.00959252]
[1733415792587,0.49199705,101960.0,101930.0,0.27145607]
[1733415792800,0.2756606,101970.0,101940.0,0.16697233]
[1733415792801,0.0011156,101970.0,101940.0,0.16697233]
[1733415793040,0.10979165,101970.0,101960.0,0.001]
[1733415793260,0.10879165,101970.0,101960.0,0.001]
[1733415793561,0.0001156,101970.0,101960.0,0.16599143]
[1733415793776,0.0041156,101970.0,101960.0,0.118693]
[1733415794016,0.09979165,101970.0,101940.0,0.244611]
[1733415794239,0.10567605,101960.0,101940.0,0.001]
[1733415794887,0.10567605,101960.0,101940.0,0.118715]
[1733415795223,0.006,101960.0,101940.0,0.5211053]
[1733415795386,0.006,101960.0,101950.0,0.28467618]
[1733415795552,0.0001156,101970.0,101950.0,0.40139243]
[1733415795760,0.0001156,101970.0,101960.0,0.003]
[1733415796193,0.0001156,101970.0,101940.0,0.70249548]
[1733415796395,0.001,101960.0,101940.0,0.49211043]
[1733415796614,0.001,101960.0,101950.0,0.117704]
[1733415797037,0.001,101960.0,101950.0,0.28369543]
[1733415797255,0.0018496,101970.0,101950.0,0.40139343]
[1733415797466,0.0018496,101970.0,101960.0,0.117693]
[1733415797667,0.0018496,101970.0,101950.0,0.52109243]
[1733415798329,0.0018496,101970.0,101960.0,0.2846651]
[1733415798667,0.0018496,101970.0,101960.0,0.54935191]
[1733415798853,0.0018496,101970.0,101960.0,0.46068516]
[1733415799617,0.0018496,101970.0,101960.0,0.194993]
[1733415800085,0.0028496,101970.0,101960.0,0.63668191]
[1733415800297,0.0028496,101970.0,101960.0,0.63570127]
[1733415800738,0.0028496,101970.0,101960.0,0.46968516]
[1733415801635,0.0028496,101970.0,101960.0,0.37000911]
[1733415801843,0.0028496,101970.0,101960.0,0.37600911]
[1733415802307,0.0028496,101970.0,101960.0,0.203993]
[1733415802539,0.0018496,101970.0,101960.0,0.117693]
[1733415802738,0.0028496,101970.0,101960.0,0.012]
[1733415802946,0.0028496,101970.0,101960.0,0.129693]
[1733415803366,0.0038496,101970.0,101960.0,0.138693]
[1733415803584,0.0028496,101970.0,101960.0,0.006]
[1733415803813,0.0028496,101970.0,101960.0,0.012]
[1733415804010,0.0028496,101970.0,101960.0,0.006]
[1733415804443,0.0028496,101970.0,101960.0,0.01]
[1733415804897,0.0028496,101970.0,101960.0,0.006]
[1733415805131,0.0028496,101970.0,101960.0,0.008]
[1733415805559,0.0018496,101970.0,101960.0,0.002]
[1733415805881,0.0018496,101970.0,101960.0,0.005]
[1733415806560,0.10152565,101970.0,101960.0,0.005]
[1733415806732,0.10152565,101970.0,101960.0,0.004]
[1733415807168,0.10152565,101970.0,101950.0,0.14051707]
[1733415807384,0.10152565,101970.0,101960.0,0.002]
[1733415807595,0.10252565,101970.0,101960.0,0.002]
[1733415807844,0.10252565,101970.0,101950.0,0.1177]
[1733415808291,0.0028496,101970.0,101960.0,0.16601611]
[1733415808494,0.0028496,101970.0,101960.0,0.117693]
[1733415808717,0.0018496,101970.0,101960.0,0.117693]
[1733415809544,0.0028496,101970.0,101960.0,0.117693]
[1733415809972,0.0028496,101970.0,101950.0,0.117699]
[1733415810208,0.0028496,101970.0,101940.0,0.40605288]
[1733415810426,0.0028496,101970.0,101950.0,0.119697]
[1733415810630,0.0028496,101970.0,101950.0,0.237397]
[1733415810851,0.0028496,101970.0,101950.0,0.40341311]
[1733415811295,0.0028496,101970.0,101950.0,0.39314501]
[1733415811750,0.0018496,101970.0,101950.0,0.39314501]
[1733415812201,0.0018496,101970.0,101950.0,0.39614501]
[1733415812645,0.0018496,101970.0,101950.0,0.27844501]
[1733415812964,0.0018496,101970.0,101950.0,0.003]
[1733415813118,0.0018496,101970.0,101950.0,0.16901611]
[1733415813306,0.0018496,101970.0,101950.0,0.28671111]
[1733415813529,0.0018496,101970.0,101950.0,0.40738783]
[1733415813964,0.0018496,101970.0,101960.0,0.117693]
[1733415814645,0.0018496,101970.0,101950.0,0.40640711]
[1733415814646,0.0018496,101970.0,101950.0,0.30302631]
[1733415814876,0.0018496,101970.0,101950.0,0.32578769]
[1733415815087,0.0018496,101970.0,101960.0,0.16601611]
[1733415815775,0.0028496,101970.0,101960.0,0.16601611]
[1733415816234,0.0028496,101970.0,101960.0,0.11071445]
[1733415820644,0.10252565,101970.0,101950.0,0.11071445]
[1733415820886,0.33656322,101970.0,101950.0,0.11071445]
[1733415821094,0.53270822,101970.0,101950.0,0.11071445]
[1733415821326,0.10252565,101970.0,101960.0,0.11071445]
[1733415821566,0.0028496,101970.0,101960.0,0.11071445]
[1733415821796,0.0028496,101970.0,101960.0,0.21859945]
[1733415822053,0.0028496,101970.0,101960.0,0.11071683]
[1733415822278,0.0028496,101970.0,101960.0,0.21860183]
[1733415822502,0.0018496,101970.0,101960.0,0.11071683]
[1733415823463,0.0038496,101970.0,101960.0,0.11071683]
[1733415825272,0.0038496,101970.0,101960.0,0.12999507]
[1733415825731,0.0038496,101970.0,101960.0,0.01927824]
[1733415826448,0.0038496,101970.0,101950.0,0.14107427]
[1733415826449,0.10352565,101970.0,101950.0,0.14107427]
[1733415826677,0.10352565,101970.0,101950.0,0.03035744]
[1733415826678,0.196155,101960.0,101950.0,0.03035744]
[1733415826918,0.55342421,101970.0,101950.0,0.03035744]
[1733415827181,0.55342021,101970.0,101950.0,0.03035744]
[1733415827442,0.16113021,101970.0,101950.0,0.14107427]
[1733415827625,0.10352565,101970.0,101950.0,0.24896827]
[1733415828088,0.10352565,101970.0,101950.0,0.25096827]
[1733415828541,0.10152565,101970.0,101950.0,0.25096827]
[1733415828777,0.10152565,101970.0,101950.0,0.35886327]
[1733415829017,0.10152565,101970.0,101950.0,0.25396827]
[1733415829245,0.10152565,101970.0,101950.0,0.25096827]
[1733415829712,0.10152565,101970.0,101950.0,0.25396827]
[1733415830833,0.18315572,101970.0,101950.0,0.25396827]
[1733415831037,0.10152565,101970.0,101950.0,0.36186027]
[1733415831278,0.0018496,101970.0,101960.0,0.21860183]
[1733415831885,0.0018496,101970.0,101950.0,0.46974427]
[1733415832119,0.0018496,101970.0,101950.0,0.36185327]
[1733415832359,0.0018496,101970.0,101950.0,0.46474327]
[1733415832562,0.0018496,101970.0,101950.0,0.35685327]
[1733415832782,0.0028496,101970.0,101950.0,0.24896327]
[1733415832999,0.0018496,101970.0,101950.0,0.35685327]
[1733415833229,0.0018496,101970.0,101950.0,0.35985327]
[1733415833456,0.0018496,101970.0,101950.0,0.46974327]
[1733415834346,0.0018496,101970.0,101950.0,0.25396327]
[1733415834851,0.0018496,101970.0,101950.0,0.36185327]
[1733415835051,0.0018496,101970.0,101950.0,0.46974427]
[1733415835254,0.0018496,101970.0,101960.0,0.21860183]
[1733415836109,0.0018496,101970.0,101960.0,0.32931866]
[1733415836358,0.0018496,101970.0,101960.0,0.42923981]
[1733415836570,0.0018496,101970.0,101960.0,0.39927788]
[1733415836828,0.0018496,101970.0,101960.0,0.41924083]
[1733415836829,0.0028496,101970.0,101960.0,0.41924083]
[1733415837027,0.0028496,101970.0,101960.0,0.31956478]
[1733415837252,0.0028496,101970.0,101960.0,0.23856478]
[1733415837761,0.0028496,101970.0,101960.0,0.23853678]
[1733415838004,0.0028496,101970.0,101960.0,0.33821283]
[1733415838005,0.0018496,101970.0,101960.0,0.33821283]
[1733415838395,0.0018496,101970.0,101960.0,0.34021283]
[1733415838848,0.0018496,101970.0,101960.0,0.34221283]
[1733415839057,0.0018496,101970.0,101960.0,0.34021283]
[1733415839574,0.0018496,101970.0,101960.0,0.24153678]
[1733415839691,0.0018496,101970.0,101960.0,0.23953678]
[1733415839877,0.0018496,101970.0,101960.0,0.23853678]
[1733415840128,0.0018496,101970.0,101960.0,0.24453678]
[1733415840552,0.0018496,101970.0,101960.0,0.24753678]
[1733415841032,0.0018496,101970.0,101960.0,0.34721283]
[1733415841727,0.0018496,101970.0,101960.0,0.34121283]
[1733415842177,0.0028496,101970.0,101960.0,0.34721283]
[1733415842413,0.0028496,101970.0,101960.0,0.34421283]
[1733415842625,0.0028496,101970.0,101960.0,0.34821283]
[1733415843333,0.0028496,101970.0,101960.0,0.34421283]
[1733415843573,0.0028496,101970.0,101960.0,0.34821283]
[1733415846164,0.0028496,101970.0,101960.0,0.24032783]
[1733415846391,0.0028496,101970.0,101960.0,0.34821283]
[1733415846593,0.0028496,101970.0,101960.0,0.34421283]
[1733415846835,0.0028496,101970.0,101960.0,0.34821283]
[1733415847291,0.0028496,101970.0,101960.0,0.34421283]
[1733415847518,0.0018496,101970.0,101960.0,0.33821283]
[1733415847759,0.0028496,101970.0,101960.0,0.34421283]
[1733415847982,0.0028496,101970.0,101960.0,0.33821283]
[1733415848938,0.0038496,101970.0,101960.0,0.34821283]
[1733415851564,0.00010857,101990.0,101970.0,0.361035]
[1733415851789,0.00016749,101990.0,101960.0,0.32662878]
[1733415852022,0.29580105,101980.0,101960.0,0.02996295]
[1733415852257,0.196136,101970.0,101960.0,0.01]
[1733415852468,0.275436,101970.0,101960.0,0.006]
[1733415852699,0.0793,101970.0,101960.0,0.012]
[1733415852907,0.48580088,101970.0,101960.0,0.012]
[1733415853191,0.84060893,101970.0,101960.0,0.006]
[1733415853435,0.321655,101960.0,101950.0,0.000867]
[1733415853659,0.64134158,101960.0,101950.0,0.000867]
[1733415853902,0.8173666,101960.0,101950.0,0.000867]
[1733415854164,0.74134158,101960.0,101950.0,0.000867]
[1733415854375,0.22517605,101960.0,101950.0,0.000867]
[1733415854830,0.0828,101970.0,101960.0,0.001]
[1733415855023,0.18247605,101970.0,101960.0,0.001]
[1733415855514,0.17747605,101970.0,101950.0,0.216652]
[1733415855742,0.17747605,101970.0,101950.0,0.32748271]
[1733415855989,0.0778,101970.0,101960.0,0.11083071]
[1733415856242,0.0456,101980.0,101960.0,0.21870871]
[1733415856460,0.001734,101970.0,101960.0,0.107878]
[1733415856703,0.009,101960.0,101950.0,0.001867]
[1733415856899,0.009,101960.0,101950.0,0.03049659]
[1733415857118,0.009,101960.0,101950.0,0.11169771]
[1733415857342,0.009,101960.0,101950.0,0.22057453]
[1733415857577,0.092434,101970.0,101950.0,0.21959371]
[1733415857848,0.19211005,101970.0,101950.0,0.21959371]
[1733415858052,0.002,101960.0,101950.0,0.21959371]
[1733415858253,0.002,101960.0,101950.0,0.000867]
[1733415858695,0.18311005,101970.0,101950.0,0.11169771]
[1733415859583,0.083434,101970.0,101960.0,0.11083071]
[1733415859837,0.001734,101970.0,101960.0,0.11083071]
[1733415860060,0.010734,101970.0,101950.0,0.32847371]
[1733415860515,0.010734,101970.0,101950.0,0.43636371]
[1733415860769,0.001734,101970.0,101950.0,0.32747271]
[1733415860976,0.001734,101970.0,101950.0,0.43536271]
[1733415861438,0.010734,101970.0,101960.0,0.22069643]
[1733415861646,0.010734,101970.0,101960.0,0.21971571]
[1733415861877,0.001734,101970.0,101960.0,0.21871571]
[1733415862561,0.001734,101970.0,101960.0,0.31839176]
[1733415863266,0.001734,101970.0,101960.0,0.21971571]
[1733415863267,0.010734,101970.0,101960.0,0.21971571]
[1733415863728,0.010734,101970.0,101960.0,0.11583071]
[1733415863996,0.010734,101970.0,101960.0,0.005]
[1733415864232,0.010734,101970.0,101960.0,0.116885]
[1733415864470,0.10141005,101970.0,101960.0,0.004]
[1733415864626,0.14751005,101970.0,101960.0,0.004]
[1733415864989,0.22861005,101970.0,101960.0,0.008]
[1733415865157,0.22861005,101970.0,101960.0,0.004]
[1733415866019,0.22861005,101970.0,101950.0,0.000867]
[1733415866237,0.18177605,101960.0,101950.0,0.000867]
[1733415867135,0.43953663,101960.0,101950.0,0.000867]
[1733415867348,0.42744872,101960.0,101950.0,0.009867]
[1733415867766,0.55931686,101960.0,101950.0,0.005867]
[1733415867978,0.66623608,101960.0,101950.0,0.007867]
[1733415868263,0.52536794,101960.0,101950.0,0.001867]
[1733415868697,0.52536794,101960.0,101950.0,0.002867]
[1733415868698,0.42360736,101960.0,101950.0,0.002867]
[1733415868904,0.53436794,101960.0,101950.0,0.002867]
[1733415869365,0.42360736,101960.0,101950.0,0.002867]
[1733415869588,0.33569527,101960.0,101950.0,0.002867]
[1733415869833,0.33777605,101960.0,101950.0,0.001867]
[1733415870293,0.33777605,101960.0,101950.0,0.002867]
[1733415870983,0.23777605,101960.0,101950.0,0.002867]
[1733415871232,0.10867605,101960.0,101950.0,0.002867]
[1733415872959,0.10867605,101960.0,101950.0,0.001867]
[1733415873165,0.09967605,101960.0,101950.0,0.001867]
[1733415873606,0.10767605,101960.0,101950.0,0.002867]
[1733415874296,0.10767605,101960.0,101950.0,0.001867]
[1733415875160,0.10767605,101960.0,101950.0,0.11262758]
[1733415875895,0.10767605,101960.0,101950.0,0.001867]
[1733415878529,0.43217605,101960.0,101950.0,0.001867]
[1733415879232,0.33217605,101960.0,101950.0,0.001867]
[1733415879434,0.23217605,101960.0,101950.0,0.001867]
[1733415879674,0.26664311,101960.0,101950.0,0.001867]
[1733415879921,0.37113749,101960.0,101950.0,0.000867]
[1733415880152,0.38013749,101960.0,101950.0,0.002867]
[1733415880371,0.38013749,101960.0,101950.0,0.001867]
[1733415880372,0.37113749,101960.0,101950.0,0.001867]
[1733415880582,0.26037691,101960.0,101950.0,0.000867]
[1733415880809,0.26937691,101960.0,101950.0,0.001867]
[1733415881025,0.26037691,101960.0,101950.0,0.001867]
[1733415881249,0.26937691,101960.0,101950.0,0.001867]
[1733415881451,0.38013749,101960.0,101950.0,0.001867]
[1733415882336,0.38013749,101960.0,101950.0,0.000867]
[1733415882623,0.37113749,101960.0,101950.0,0.001867]
[1733415882817,0.38013749,101960.0,101950.0,0.002867]
[1733415883032,0.38913749,101960.0,101950.0,0.002867]
[1733415883250,0.40529925,101960.0,101950.0,0.000867]
[1733415883551,0.31253867,101960.0,101950.0,0.002867]
[1733415883777,0.31253867,101960.0,101950.0,0.001867]
[1733415883778,0.40529925,101960.0,101950.0,0.001867]
[1733415884234,0.42538853,101960.0,101950.0,0.001867]
[1733415884671,0.43438853,101960.0,101950.0,0.002867]
[1733415885384,0.32362795,101960.0,101950.0,0.002867]
[1733415885832,0.31462795,101960.0,101950.0,0.001867]
[1733415886150,0.42538853,101960.0,101950.0,0.001867]
[1733415886740,0.43438853,101960.0,101950.0,0.001867]
[1733415887887,0.19386058,101950.0,101940.0,0.0008667]
[1733415888137,0.33767548,101950.0,101940.0,0.0008667]
[1733415888399,0.30462116,101940.0,101930.0,0.0008662]
[1733415888672,0.29353663,101940.0,101930.0,0.0008662]
[1733415888875,0.32134701,101940.0,101930.0,0.0008662]
[1733415889102,0.2,101930.0,101880.0,0.22533595]
[1733415889318,0.09967605,101920.0,101880.0,0.33329995]
[1733415889556,0.09967605,101920.0,101880.0,0.46653552]
[1733415890259,0.09967605,101920.0,101890.0,0.11076058]
[1733415890477,0.53213663,101920.0,101880.0,0.21144057]
[1733415890921,0.53913663,101920.0,101880.0,0.10347057]
[1733415891251,0.59798566,101920.0,101880.0,0.10347057]
[1733415891488,0.19967605,101910.0,101870.0,0.1591072]
[1733415892443,0.09967605,101900.0,101870.0,0.0017342]
[1733415892678,0.09967605,101890.0,101870.0,0.0017342]
[1733415893109,0.09967605,101890.0,101870.0,0.0027342]
[1733415893342,0.11013631,101890.0,101870.0,0.0017342]
[1733415893793,0.11013631,101890.0,101870.0,0.00231869]
[1733415894013,0.11013631,101890.0,101870.0,0.00531869]
[1733415894969,0.21013631,101890.0,101870.0,0.00531869]
[1733415895177,0.11013631,101890.0,101870.0,0.00531869]
[1733415895381,0.09967605,101890.0,101880.0,0.21873058]
[1733415895596,0.10067605,101890.0,101870.0,0.41642827]
[1733415895817,0.10167605,101890.0,101870.0,0.41642827]
[1733415896045,0.10067605,101890.0,101870.0,0.41642827]
[1733415896312,0.11874366,101890.0,101870.0,0.19269269]
[1733415896530,0.21874366,101890.0,101870.0,0.00631869]
[1733415896770,0.26644366,101890.0,101870.0,0.00631869]
[1733415896937,0.26744366,101890.0,101870.0,0.00631869]
[1733415897204,0.25844366,101890.0,101870.0,0.00231869]
[1733415897364,0.26144366,101890.0,101870.0,0.00231869]
[1733415897589,0.09967605,101880.0,101870.0,0.00231869]
[1733415897825,0.24689647,101880.0,101870.0,0.00231869]
[1733415898745,0.24689647,101880.0,101870.0,0.00331869]
[1733415899238,0.43335705,101880.0,101870.0,0.00231869]
[1733415899481,0.33159647,101880.0,101870.0,0.00231869]
[1733415900162,0.32259647,101880.0,101870.0,0.00231869]
[1733415900342,0.34059647,101880.0,101870.0,0.00231869]
[1733415900631,0.44235705,101880.0,101870.0,0.00231869]
[1733415900827,0.34235705,101880.0,101870.0,0.00231869]
[1733415901512,0.44235705,101880.0,101870.0,0.00231869]
[1733415901778,0.48235705,101880.0,101870.0,0.00231869]
[1733415901981,0.50035705,101880.0,101870.0,0.00231869]
[1733415902524,0.40035705,101880.0,101870.0,0.00231869]
[1733415902931,0.40035705,101880.0,101850.0,0.0008662]
[1733415902932,0.0793,101860.0,101850.0,0.0008662]
[1733415903155,0.34470605,101860.0,101850.0,0.0008662]
[1733415903371,0.45546663,101860.0,101850.0,0.0008662]
[1733415904768,0.34470605,101860.0,101850.0,0.0008662]
[1733415905323,0.54705305,101860.0,101850.0,0.0018662]
[1733415905445,0.55605305,101860.0,101850.0,0.0018662]
[1733415905709,0.40502305,101860.0,101850.0,0.0008662]
[1733415906049,0.10867605,101860.0,101850.0,0.11162678]
[1733415906216,0.12667605,101860.0,101850.0,0.0008662]
[1733415906476,0.09967605,101860.0,101850.0,0.0008662]
[1733415906736,0.10867605,101860.0,101850.0,0.0008662]
[1733415908280,0.20867605,101860.0,101850.0,0.0008662]
[1733415908494,0.32843663,101860.0,101850.0,0.0008662]
[1733415908751,0.39602305,101860.0,101850.0,0.0008662]
[1733415908962,0.49335581,101860.0,101850.0,0.0018662]
[1733415909236,0.49935581,101860.0,101850.0,0.0018662]
[1733415909453,0.49335581,101860.0,101850.0,0.0008662]
[1733415909876,0.50235581,101860.0,101850.0,0.0008662]
[1733415910092,0.51135581,101860.0,101850.0,0.0008662]
[1733415910315,0.50235581,101860.0,101850.0,0.0008662]
[1733415910806,0.51135581,101860.0,101850.0,0.0008662]
[1733415911017,0.32302305,101860.0,101850.0,0.0008662]
[1733415911251,0.12667605,101860.0,101850.0,0.0008662]
[1733415911469,0.10867605,101860.0,101850.0,0.0008662]
[1733415911685,0.11767605,101860.0,101850.0,0.0008662]
[1733415912160,0.10867605,101860.0,101850.0,0.0008662]
[1733415912346,0.11767605,101860.0,101850.0,0.0008662]
[1733415912575,0.10867605,101860.0,101850.0,0.0008662]
[1733415912832,0.30502305,101860.0,101850.0,0.0008662]
[1733415912988,0.31402305,101860.0,101850.0,0.0008662]
[1733415913241,0.66805384,101860.0,101850.0,0.0008662]
[1733415913440,0.75905384,101860.0,101850.0,0.0008662]
[1733415913726,0.66405384,101860.0,101850.0,0.0008662]
[1733415913976,0.196367,101850.0,101840.0,0.0117324]
[1733415914180,0.58682285,101850.0,101840.0,0.0117324]
[1733415914431,0.1,101840.0,101830.0,0.0008662]
[1733415914639,0.55252263,101840.0,101830.0,0.0008662]
[1733415915330,0.1,101820.0,101770.0,0.4023796]
[1733415915552,0.29612905,101810.0,101770.0,0.55462991]
[1733415915716,0.29612905,101810.0,101770.0,0.44654791]
[1733415915940,0.196463,101800.0,101770.0,0.44654791]
[1733415916159,0.09967605,101790.0,101770.0,0.12696831]
[1733415916382,0.09967605,101790.0,101770.0,0.01955537]
[1733415916383,0.29616105,101790.0,101770.0,0.01955537]
[1733415916670,0.49265205,101790.0,101770.0,0.01955537]
[1733415916868,0.49265805,101790.0,101770.0,0.01955537]
[1733415917055,0.29616105,101790.0,101770.0,0.02255537]
[1733415917355,0.49265205,101790.0,101770.0,0.02255537]
[1733415917506,0.68915005,101790.0,101770.0,0.02255537]
[1733415917721,0.68915005,101790.0,101770.0,0.01955537]
[1733415917954,0.69015005,101790.0,101770.0,0.02255537]